{"text_format":"1","workbook":"xlsx","n_sheets":1,"sheets":["契約用請求書"],"not_rendered":{"charts":0,"images":1,"macros":1,"external_links":0,"defined_names":1,"comments":0,"pivot_tables":0},"unopened":[],"bounds":{"document_bytes":16777216,"sheet_cells":100000,"rows_first":2000,"rows_last":500,"rows_between":2000,"halvings":0,"cell_chars":16384,"cell_head_chars":4096},"cells_cut":0,"cells_raw":0,"read":"whole","date_system":"1900"}

{"sheet":"契約用請求書","index":0,"n_rows":118,"n_cols":102,"rows_kept":118,"cut":false,"hidden":false,"merged":[[6,0,6,5],[6,6,6,20],[6,21,6,38],[8,0,8,5],[8,6,8,20],[8,21,8,38],[0,0,0,38],[2,0,2,5],[2,6,2,20],[2,21,2,38],[4,0,4,5],[4,6,4,20],[4,21,4,38],[14,0,14,5],[14,6,14,20],[14,21,14,38],[16,0,16,5],[16,6,16,20],[16,21,16,38],[10,0,10,5],[10,6,10,20],[10,21,10,38],[12,0,12,5],[12,6,12,20],[12,21,12,38],[22,0,22,5],[22,6,22,20],[22,21,22,38],[24,0,24,38],[26,0,26,5],[26,6,26,20],[26,21,26,38],[18,0,18,5],[18,6,18,20],[18,21,18,38],[20,0,20,5],[20,6,20,20],[20,21,20,38],[30,94,30,101],[32,0,32,5],[32,6,32,20],[32,21,32,38],[32,100,32,101],[33,21,33,38],[28,0,28,5],[28,6,28,8],[28,9,28,20],[28,21,28,38],[30,0,30,5],[30,6,30,20],[30,21,30,38],[40,0,40,5],[40,6,40,20],[40,21,40,38],[42,0,42,5],[42,6,42,20],[42,21,42,38],[34,0,34,38],[36,0,36,5],[36,6,36,20],[36,21,36,38],[38,0,38,5],[38,6,38,20],[38,21,38,38],[46,32,46,38],[47,0,47,8],[47,9,47,11],[47,12,47,13],[47,14,47,16],[47,17,47,23],[47,24,47,26],[47,27,47,28],[47,29,47,31],[47,32,47,38],[44,0,46,8],[44,9,45,23],[44,24,45,38],[46,9,46,11],[46,12,46,13],[46,14,46,16],[46,17,46,23],[46,24,46,26],[46,27,46,28],[46,29,46,31],[48,27,48,28],[48,29,48,31],[48,32,48,38],[49,0,49,8],[49,9,49,11],[49,12,49,13],[49,14,49,16],[49,17,49,23],[49,24,49,26],[49,27,49,28],[48,0,48,8],[48,9,48,11],[48,12,48,13],[48,14,48,16],[48,17,48,23],[48,24,48,26],[49,29,49,31],[49,32,49,38],[50,0,50,8],[50,9,50,11],[50,12,50,13],[50,14,50,16],[50,17,50,23],[50,24,50,26],[50,27,50,28],[50,29,50,31],[50,32,50,38],[51,0,51,8],[51,9,51,11],[51,12,51,13],[51,14,51,16],[51,17,51,23],[51,24,51,26],[51,27,51,28],[51,29,51,31],[51,32,51,38],[53,0,53,8],[53,9,53,11],[53,12,53,13],[53,14,53,16],[53,17,53,23],[53,24,53,26],[53,27,53,28],[52,0,52,8],[52,9,52,11],[52,12,52,13],[52,14,52,16],[52,17,52,23],[52,24,52,26],[53,29,53,31],[53,32,53,38],[54,9,54,16],[54,17,54,23],[54,24,54,31],[54,32,54,38],[52,27,52,28],[52,29,52,31],[52,32,52,38],[57,0,57,2],[57,40,57,92],[58,54,58,62],[58,86,58,92],[55,7,55,8],[55,9,55,16],[55,17,55,23],[55,24,55,31],[55,32,55,38],[56,0,56,4],[56,5,56,6],[56,7,56,8],[56,9,56,16],[56,17,56,23],[59,40,61,42],[59,43,61,67],[59,82,59,85],[59,86,59,92],[60,82,60,85],[60,86,60,92],[61,71,61,79],[56,24,56,31],[56,32,56,38],[68,40,69,55],[68,56,69,67],[68,68,68,70],[68,71,68,84],[68,85,68,87],[68,88,68,91],[63,71,63,91],[64,40,65,55],[64,56,65,67],[64,71,65,91],[65,68,65,70],[66,40,67,55],[66,56,67,67],[66,68,66,70],[66,71,66,91],[62,40,63,42],[62,43,63,47],[62,48,63,55],[62,56,62,67],[63,56,63,67],[63,68,63,70],[70,88,70,89],[70,90,70,91],[72,40,73,55],[72,56,73,67],[72,68,72,70],[72,71,72,76],[72,77,72,81],[72,82,72,91],[70,40,71,55],[70,56,71,67],[70,68,70,70],[70,71,70,76],[70,77,70,81],[70,82,70,87],[75,85,75,92],[76,40,76,55],[76,56,76,60],[76,61,76,62],[76,63,76,65],[76,66,76,73],[76,74,76,77],[76,78,76,80],[76,81,76,84],[76,85,76,92],[74,40,75,55],[74,56,74,73],[74,74,74,92],[75,56,75,60],[75,61,75,62],[75,63,75,65],[75,66,75,73],[75,74,75,77],[75,78,75,80],[75,81,75,84],[77,78,77,80],[77,81,77,84],[77,85,77,92],[78,40,78,55],[78,56,78,60],[78,61,78,62],[78,63,78,65],[78,66,78,73],[78,74,78,77],[78,78,78,80],[77,40,77,55],[77,56,77,60],[77,61,77,62],[77,63,77,65],[77,66,77,73],[77,74,77,77],[78,81,78,84],[78,85,78,92],[79,40,79,55],[79,56,79,60],[79,61,79,62],[79,63,79,65],[79,66,79,73],[79,74,79,77],[79,78,79,80],[79,81,79,84],[79,85,79,92],[80,40,80,55],[80,56,80,60],[80,61,80,62],[80,63,80,65],[80,66,80,73],[80,74,80,77],[80,78,80,80],[80,81,80,84],[80,85,80,92],[82,40,82,55],[82,56,82,60],[82,61,82,62],[82,63,82,65],[82,66,82,73],[82,74,82,77],[82,78,82,80],[81,40,81,55],[81,56,81,60],[81,61,81,62],[81,63,81,65],[81,66,81,73],[81,74,81,77],[82,81,82,84],[82,85,82,92],[83,56,83,65],[83,66,83,73],[83,74,83,84],[83,85,83,92],[81,78,81,80],[81,81,81,84],[81,85,81,92],[84,50,84,55],[84,56,84,65],[84,66,84,73],[84,74,84,84],[84,85,84,92],[85,40,85,47],[85,48,85,50],[85,51,85,55],[85,56,85,65],[85,66,85,73],[85,74,85,84],[85,85,85,92],[88,41,89,43],[88,44,89,44],[88,45,89,47],[88,50,89,59],[88,60,89,60],[88,61,89,61],[88,74,88,79],[88,80,91,83],[88,84,91,92],[89,74,91,79],[91,41,92,43],[91,44,92,44],[91,45,92,47],[91,48,92,49],[91,50,92,53],[91,54,92,55],[91,56,92,58],[91,59,92,59],[91,60,92,60],[92,73,94,73],[92,74,92,79],[92,89,94,89],[92,90,94,90],[95,89,97,89],[95,90,97,90],[95,91,97,91],[95,92,97,92],[95,86,97,86],[95,87,97,87],[95,88,97,88],[86,40,86,92],[87,74,87,92],[92,91,94,91],[92,92,94,92],[93,74,94,74],[93,75,94,75],[93,76,94,76],[93,77,94,78],[93,79,94,79],[93,80,94,83],[92,80,92,83],[92,84,94,84],[92,85,94,85],[92,86,94,86],[92,87,94,87],[92,88,94,88],[97,41,98,43],[97,45,98,47],[97,80,97,83],[98,73,101,73],[98,74,100,79],[95,80,96,83],[95,84,97,84],[95,85,97,85],[94,41,95,43],[94,44,95,44],[94,45,95,47],[94,48,95,49],[94,50,95,53],[94,54,95,55],[94,56,95,58],[95,73,97,73],[95,74,96,79],[98,92,101,92],[100,41,101,43],[100,44,101,44],[100,45,101,47],[100,48,101,49],[100,50,101,53],[100,54,101,55],[98,80,100,83],[98,84,101,84],[98,85,101,85],[98,86,101,86],[98,87,101,87],[98,88,101,88],[101,80,101,83],[100,56,101,58],[100,59,101,59],[100,60,101,60],[100,61,101,61],[100,63,101,66],[100,67,101,71],[98,89,101,89],[98,90,101,90],[98,91,101,91],[97,44,98,44],[102,87,105,87],[102,88,105,88],[102,89,105,89],[102,90,105,90],[102,91,105,91],[102,92,105,92],[102,73,105,73],[102,74,103,79],[102,80,103,83],[102,84,105,84],[102,85,105,85],[102,86,105,86],[104,75,105,75],[104,76,105,76],[104,77,105,78],[104,79,105,79],[104,80,105,83],[106,66,106,70],[106,71,106,72],[106,73,107,73],[106,74,106,79],[106,80,106,83],[103,41,104,43],[103,44,104,44],[103,45,104,47],[103,48,104,49],[103,50,104,53],[104,74,105,74],[108,41,109,43],[108,44,109,53],[108,54,108,55],[108,56,108,62],[108,63,108,64],[108,66,108,70],[106,90,107,90],[106,91,107,91],[106,92,107,92],[107,54,107,55],[107,56,107,62],[107,63,107,64],[107,66,107,70],[107,71,107,72],[107,80,107,83],[106,84,107,84],[106,85,107,85],[106,86,107,86],[106,87,107,87],[106,88,107,88],[106,89,107,89],[106,41,107,43],[106,44,107,53],[106,54,106,64],[110,86,114,86],[110,87,114,87],[108,92,109,92],[109,54,109,55],[109,56,109,62],[109,63,109,64],[109,65,109,72],[109,80,109,83],[108,86,109,86],[108,87,109,87],[108,88,109,88],[108,89,109,89],[108,90,109,90],[108,91,109,91],[108,71,108,72],[108,73,109,73],[108,74,108,79],[108,80,108,83],[108,84,109,84],[108,85,109,85],[117,65,117,67],[117,69,117,71],[117,74,117,88],[117,90,117,92],[114,49,114,51],[114,52,114,54],[114,55,114,57],[114,58,114,59],[117,40,117,52],[117,58,117,59],[110,88,114,88],[110,89,114,89],[110,90,114,90],[110,91,114,91],[110,92,114,92],[111,41,113,43],[111,44,113,59],[114,41,114,43],[114,44,114,45],[114,46,114,48],[110,65,111,72],[110,74,114,83],[110,84,114,84],[110,85,114,85]]}
["【基本事項の入力】変更事項が生じた場合は、「印鑑届兼振込依頼書」を再度提出してください。"]
[]
["①郵便番号",null,null,null,null,null,null,null,null,null,null,null,null,null,null,null,null,null,null,null,null,"ハイフンを入れて入力してください。（例）〇〇〇-××××"]
[]
["②会社所在地"]
[]
["③会社名"]
[]
["④代表者役職・氏名"]
[]
["⑤電話番号",null,null,null,null,null,null,null,null,null,null,null,null,null,null,null,null,null,null,null,null,"ハイフンを入れて入力してください。"]
[]
["⑥担当者名"]
[]
["⑦振込銀行名"]
[]
["⑧支店名"]
[]
["⑨預金種別",null,null,null,null,null,null,null,null,null,null,null,null,null,null,null,null,null,null,null,null,"普通・当座のどちらかを選択してください。"]
[]
["⑩口座番号"]
[]
["⑪口座名義（カナ）"]
[]
["【注文書情報の入力】弊社発行の注文書をご確認ください。"]
[]
["⑫工事コード",null,null,null,null,null,null,null,null,null,null,null,null,null,null,null,null,null,null,null,null,"注文書記載の６桁の工事コードを入力してください。"]
[]
["⑬注文番号",null,null,null,null,null,null,null,null,null,null,null,null,null,null,null,null,null,null,null,null,"注文書記載の４桁の注文番号を入力してください。"]
[]
["⑭取引先コード",null,null,null,null,null,null,null,null,null,null,null,null,null,null,null,null,null,null,null,null,"注文書記載の６桁の取引先コードを入力してください。"]
[]
["⑮工事名称",null,null,null,null,null,null,null,null,null,null,null,null,null,null,null,null,null,null,null,null,"注文書記載の工事名称を入力してください。（25文字以内）"]
[null,null,null,null,null,null,null,null,null,null,null,null,null,null,null,null,null,null,null,null,null,"※工事名称が空欄の場合は、「注記」記載の工事名を入力してください。"]
["【請求情報の入力】"]
[]
["⑯請求年月日",null,null,null,null,null,null,null,null,null,null,null,null,null,null,null,null,null,null,null,null,"yyyy/mm/dd　形式で入力してください。"]
[]
["⑰佐伯建設担当者名"]
[]
["⑱受領済金額（税込）",null,null,null,null,null,null,null,null,null,null,null,null,null,null,null,null,null,null,null,null,"初回請求の場合は￥０で入力してください。"]
[]
["⑲請求番号（任意）",null,null,null,null,null,null,null,null,null,null,null,null,null,null,null,null,null,null,null,null,"01～99の内、任意の数字を入力してください。"]
[]
["品 名 又 は 名 称",null,null,null,null,null,null,null,null,"（A）契約（単価契約は記入不要）",null,null,null,null,null,null,null,null,null,null,null,null,null,null,"（B）出来高累計（単価契約は当月請求額）"]
[]
[null,null,null,null,null,null,null,null,null,"数 量",null,null,"単位",null,"単 価",null,null,"金　　額",null,null,null,null,null,null,"数 量",null,null,"単位",null,"単 価",null,null,"金　　額"]
[null,null,null,null,null,null,null,null,null,null,null,null,null,null,null,null,null,{"$f":"IFERROR(IF(J48*O48=0,\"\",ROUNDDOWN(J48*O48,0)),\"\")","v":""},null,null,null,null,null,null,null,null,null,null,null,null,null,null,{"$f":"IFERROR(IF(Y48*AD48=0,\"\",ROUNDDOWN(Y48*AD48,0)),\"\")","v":""}]
[null,null,null,null,null,null,null,null,null,null,null,null,null,null,null,null,null,{"$f":"IFERROR(IF(J49*O49=0,\"\",ROUNDDOWN(J49*O49,0)),\"\")","v":""},null,null,null,null,null,null,null,null,null,null,null,null,null,null,{"$f":"IFERROR(IF(Y49*AD49=0,\"\",ROUNDDOWN(Y49*AD49,0)),\"\")","v":""}]
[null,null,null,null,null,null,null,null,null,null,null,null,null,null,null,null,null,"",null,null,null,null,null,null,null,null,null,null,null,null,null,null,""]
[null,null,null,null,null,null,null,null,null,null,null,null,null,null,null,null,null,"",null,null,null,null,null,null,null,null,null,null,null,null,null,null,""]
[null,null,null,null,null,null,null,null,null,null,null,null,null,null,null,null,null,"",null,null,null,null,null,null,null,null,null,null,null,null,null,null,""]
[null,null,null,null,null,null,null,null,null,null,null,null,null,null,null,null,null,"",null,null,null,null,null,null,null,null,null,null,null,null,null,null,""]
[null,null,null,null,null,null,null,null,null,null,null,null,null,null,null,null,null,"",null,null,null,null,null,null,null,null,null,null,null,null,null,null,""]
[null,null,null,null,null,null,null,null,null,"本体価格計（税抜）",null,null,null,null,null,null,null,{"$f":"IF(SUM(R48:X54)=0,\"\",SUM(R48:X54))","v":""},null,null,null,null,null,null,"本体価格計（税抜）",null,null,null,null,null,null,null,{"$f":"IF(SUM(AG48:AM54)=0,\"\",SUM(AG48:AM54))","v":""}]
[null,null,null,null,null,null,null,0.1,null,"消費税等（円未満切捨）",null,null,null,null,null,null,null,{"$f":"IFERROR(IF(H56=8%,ROUNDDOWN(R55*0.08,0),ROUNDDOWN(R55*0.1,0)),\"\")","v":""},null,null,null,null,null,null,"消費税等（円未満切捨）",null,null,null,null,null,null,null,{"$f":"IFERROR(IF(H56=8%,ROUNDDOWN(AG55*0.08,0),ROUNDDOWN(AG55*0.1,0)),\"\")","v":""}]
[null,null,null,null,null,null,null,null,null,"合計（Ａ）",null,null,null,null,null,null,null,{"$f":"IFERROR(R55+R56,\"\")","v":""},null,null,null,null,null,null,"合計（Ｂ）",null,null,null,null,null,null,null,{"$f":"IFERROR(AG55+AG56,\"\")","v":""}]
[null,null,null,null,null,null,null,null,null,null,null,null,null,null,null,null,null,null,null,null,null,null,null,null,null,null,null,null,null,null,null,null,null,null,null,null,null,null,null,null,"請　求　書　（契 約 用）"]
[null,null,null,null,null,null,null,null,null,null,null,null,null,null,null,null,null,null,null,null,null,null,null,null,null,null,null,null,null,null,null,null,null,null,null,null,null,null,null,null,null,null,null,null,null,null,null,null,null,null,null,null,null,null,"　　御 中"]
[null,null,null,null,null,null,null,null,null,null,null,null,null,null,null,null,null,null,null,null,null,null,null,null,null,null,null,null,null,null,null,null,null,null,null,null,null,null,null,null,"工事名称",null,null,{"$f":"IF(契約用請求書!$G$33=\"\",\"\",契約用請求書!$G$33)","v":""}]
[null,null,null,null,null,null,null,null,null,null,null,null,null,null,null,null,null,null,null,null,null,null,null,null,null,null,null,null,null,null,null,null,null,null,null,null,null,null,null,null,null,null,null,null,null,null,null,null,null,null,null,null,null,null,null,null,null,null,null,null,null,null,null,null,null,null,null,null,null,null,null,null,null,null,null,null,null,null,null,null,null,null,"請求日",null,null,null,{"$f":"IF(契約用請求書!G37=\"\",\"\",契約用請求書!G37)","v":""}]
[null,null,null,null,null,null,null,null,null,null,null,null,null,null,null,null,null,null,null,null,null,null,null,null,null,null,null,null,null,null,null,null,null,null,null,null,null,null,null,null,null,null,null,null,null,null,null,null,null,null,null,null,null,null,null,null,null,null,null,null,null,null,null,null,null,null,null,null,null,null,"〒",{"$f":"IF(契約用請求書!$G$3=\"\",\"\",契約用請求書!$G$3)","v":""}]
[null,null,null,null,null,null,null,null,null,null,null,null,null,null,null,null,null,null,null,null,null,null,null,null,null,null,null,null,null,null,null,null,null,null,null,null,null,null,null,null,"契約番号",null,null,{"$f":"IF(契約用請求書!$G$29=\"\",\"\",契約用請求書!$G$29)","v":""},null,null,null,null,{"$f":"IF(CW74=TRUE,\"単価契約\",\"\")","v":""}]
[null,null,null,null,null,null,null,null,null,null,null,null,null,null,null,null,null,null,null,null,null,null,null,null,null,null,null,null,null,null,null,null,null,null,null,null,null,null,null,null,null,null,null,null,null,null,null,null,null,null,null,null,null,null,null,null,{"$f":"IF($G$39=\"\",\"\",$G$39)","v":""},null,null,null,null,null,null,null,null,null,null,null,"所 在 地",null,null,{"$f":"IF(契約用請求書!$G$5=\"\",\"\",契約用請求書!$G$5)","v":""},null,null,null,null,null,null,null,null,null,null,null,null,null,null,null,null,null,null,null,null,null,null,null,null,null,null,null,null,"A",{"$f":"BE65&\"\"","v":""}]
[null,null,null,null,null,null,null,null,null,null,null,null,null,null,null,null,null,null,null,null,null,null,null,null,null,null,null,null,null,null,null,null,null,null,null,null,null,null,null,null,"　契　約　金　額　　(A)",null,null,null,null,null,null,null,null,null,null,null,null,null,null,null,{"$f":"IFERROR(BO86,\"\")","v":""},null,null,null,null,null,null,null,null,null,null,null,null,null,null,{"$f":"IF(契約用請求書!$G$7=\"\",\"\",契約用請求書!$G$7)","v":""},null,null,null,null,null,null,null,null,null,null,null,null,null,null,null,null,null,null,null,null,null,null,null,null,null,null,null,null,"B",{"$f":"BE67&\"\"","v":""}]
[null,null,null,null,null,null,null,null,null,null,null,null,null,null,null,null,null,null,null,null,null,null,null,null,null,null,null,null,null,null,null,null,null,null,null,null,null,null,null,null,null,null,null,null,null,null,null,null,null,null,null,null,null,null,null,null,null,null,null,null,null,null,null,null,null,null,null,null,"会 社 名",null,null,null,null,null,null,null,null,null,null,null,null,null,null,null,null,null,null,null,null,null,null,null,null,null,null,null,null,null,null,null,"C",{"$f":"G41&\"\"","v":""}]
[null,null,null,null,null,null,null,null,null,null,null,null,null,null,null,null,null,null,null,null,null,null,null,null,null,null,null,null,null,null,null,null,null,null,null,null,null,null,null,null,"出来高（累計）金額　(B)",null,null,null,null,null,null,null,null,null,null,null,null,null,null,null,{"$f":"IFERROR(CH86,\"\")","v":""},null,null,null,null,null,null,null,null,null,null,null,"代表者名",null,null,{"$f":"IF(契約用請求書!$G$9=\"\",\"\",契約用請求書!$G$9)","v":""},null,null,null,null,null,null,null,null,null,null,null,null,null,null,null,null,null,null,null,null,null,null,null,null,null,null,null,null,{"$f":"IF(AND(CX64<>\"\",CX65<>\"\",CX66<>\"\",CX65-CX66<=0),\"over\",\"GO\")","v":{"$error":"#VALUE!"}},"受領済金額>出来高累計金額"]
[null,null,null,null,null,null,null,null,null,null,null,null,null,null,null,null,null,null,null,null,null,null,null,null,null,null,null,null,null,null,null,null,null,null,null,null,null,null,null,null,null,null,null,null,null,null,null,null,null,null,null,null,null,null,null,null,null,null,null,null,null,null,null,null,null,null,null,null,null,null,null,null,null,null,null,null,null,null,null,null,null,null,null,null,null,null,null,null,null,null,null,null,null,null,null,null,null,null,null,null,{"$f":"IF(AND(CX64<>\"\",CX65<>\"\",CX66=\"\"),\"※C\",\"GO\")","v":"GO"},"受領済金額未入力"]
[null,null,null,null,null,null,null,null,null,null,null,null,null,null,null,null,null,null,null,null,null,null,null,null,null,null,null,null,null,null,null,null,null,null,null,null,null,null,null,null,"受　領　済　金　額　(C)",null,null,null,null,null,null,null,null,null,null,null,null,null,null,null,{"$f":"IF(BO86=\"\",\"\",IF(契約用請求書!G41=\"\",\"\",契約用請求書!G41))","v":""},null,null,null,null,null,null,null,null,null,null,null,"ＴＥＬ",null,null,{"$f":"IF(契約用請求書!$G$11=\"\",\"\",契約用請求書!$G$11)","v":""},null,null,null,null,null,null,null,null,null,null,null,null,null,"担当者(",null,null,{"$f":"IF(契約用請求書!$G$13=\"\",\"\",契約用請求書!$G$13)","v":""},null,null,null,")",null,null,null,null,null,null,null,{"$f":"IF(AND(CX64<>\"\",CX65=\"\"),\"※B\",\"GO\")","v":"GO"},"出来高累計金額未入力"]
[null,null,null,null,null,null,null,null,null,null,null,null,null,null,null,null,null,null,null,null,null,null,null,null,null,null,null,null,null,null,null,null,null,null,null,null,null,null,null,null,null,null,null,null,null,null,null,null,null,null,null,null,null,null,null,null,null,null,null,null,null,null,null,null,null,null,null,null,null,null,null,null,null,null,null,null,null,null,null,null,null,null,null,null,null,null,null,null,null,null,null,null,null,null,null,null,null,null,null,null,{"$f":"IF(AND(CX64=\"\",CX65=\"\",CX66=\"\"),\"GO\",\"OK\")","v":"GO"},"ABC空欄(白紙印刷可能)"]
[null,null,null,null,null,null,null,null,null,null,null,null,null,null,null,null,null,null,null,null,null,null,null,null,null,null,null,null,null,null,null,null,null,null,null,null,null,null,null,null,"今  回  請 求 額 (D)=(B)-(C)",null,null,null,null,null,null,null,null,null,null,null,null,null,null,null,{"$f":"IF(BO86=\"\",CH86,IFERROR(IF(BE67-BE69>0,BE67-BE69,\"\"),\"\"))","v":""},null,null,null,null,null,null,null,null,null,null,null,"振込銀行名",null,null,{"$f":"IF(契約用請求書!$G$15=\"\",\"\",契約用請求書!$G$15)","v":""},null,null,null,null,null,"支店名",null,null,null,null,{"$f":"IF(契約用請求書!$G$17=\"\",\"\",契約用請求書!$G$17)","v":""},null,null,null,null,null,"種別",null,{"$f":"IF(契約用請求書!$G$19=\"\",\"\",契約用請求書!$G$19)","v":""},null,null,null,null,null,null,null,null,null,{"$f":"IF(AND(CX64=\"\",CX65<>\"\",CX66=\"\"),\"B\",\"GO\")","v":"GO"},"出来高累計金額→印刷可"]
[null,null,null,null,null,null,null,null,null,null,null,null,null,null,null,null,null,null,null,null,null,null,null,null,null,null,null,null,null,null,null,null,null,null,null,null,null,null,null,null,null,null,null,null,null,null,null,null,null,null,null,null,null,null,null,null,null,null,null,null,null,null,null,null,null,null,null,null,null,null,null,null,null,null,null,null,null,null,null,null,null,null,null,null,null,null,null,null,null,null,null,null,null,null,null,null,null,null,null,null,{"$f":"IF(AND($CX$64=\"\",$CX$65<>\"\",$CX$66<>\"\"),\"※A\",\"GO\")","v":"GO"},"契約金額が空欄"]
[null,null,null,null,null,null,null,null,null,null,null,null,null,null,null,null,null,null,null,null,null,null,null,null,null,null,null,null,null,null,null,null,null,null,null,null,null,null,null,null," 残      金      額 (A)-(C)-(D)",null,null,null,null,null,null,null,null,null,null,null,null,null,null,null,{"$f":"IFERROR(BE65-BE69-BE71,\"\")","v":""},null,null,null,null,null,null,null,null,null,null,null,"口座番号",null,null,{"$f":"IF(契約用請求書!$G$21=\"\",\"\",契約用請求書!$G$21)","v":""},null,null,null,null,null,"口座名義",null,null,null,null,{"$f":"IF(契約用請求書!$G$23=\"\",\"\",契約用請求書!$G$23)","v":""},null,null,null,null,null,null,null,null,null,null,null,null,null,null,null,null,null,{"$f":"IF(AND($CX$64=\"\",$CX$65=\"\",$CX$66<>\"\"),\"※AB\",\"GO\")","v":"GO"},"契約金額・出来高累計金額未入力"]
[null,null,null,null,null,null,null,null,null,null,null,null,null,null,null,null,null,null,null,null,null,null,null,null,null,null,null,null,null,null,null,null,null,null,null,null,null,null,null,null,null,null,null,null,null,null,null,null,null,null,null,null,null,null,null,null,null,null,null,null,null,null,null,null,null,null,null,null,null,null,null,null,null,null,null,null,null,null,null,null,null,null,null,null,null,null,null,null,null,null,null,null,null,null,null,null,null,null,null,null,false,"←チェックボックスと連動"]
[null,null,null,null,null,null,null,null,null,null,null,null,null,null,null,null,null,null,null,null,null,null,null,null,null,null,null,null,null,null,null,null,null,null,null,null,null,null,null,null,"品 名 又 は 名 称 ",null,null,null,null,null,null,null,null,null,null,null,null,null,null,null,"（A）契約（単価契約は記入不要）",null,null,null,null,null,null,null,null,null,null,null,null,null,null,null,null,null,"（B）出来高累計（単価契約は当月請求額）"]
[null,null,null,null,null,null,null,null,null,null,null,null,null,null,null,null,null,null,null,null,null,null,null,null,null,null,null,null,null,null,null,null,null,null,null,null,null,null,null,null,null,null,null,null,null,null,null,null,null,null,null,null,null,null,null,null,"数 量",null,null,null,null,"単 位",null,"単 価",null,null,"金　　額",null,null,null,null,null,null,null,"数 量",null,null,null,"単 位",null,null,"単 価",null,null,null,"金　　額",null,null,null,null,null,null,null,null,null,null,null,null,null,null,"請求番号",{"$f":"IF(契約用請求書!G43=\"\",\"\",契約用請求書!G43)","v":""}]
[null,null,null,null,null,null,null,null,null,null,null,null,null,null,null,null,null,null,null,null,null,null,null,null,null,null,null,null,null,null,null,null,null,null,null,null,null,null,null,null,{"$f":"IF(契約用請求書!$A48=\"\",\"\",契約用請求書!A48)","v":""},null,null,null,null,null,null,null,null,null,null,null,null,null,null,null,{"$f":"IF(契約用請求書!J48=\"\",\"\",契約用請求書!J48)","v":""},null,null,null,null,{"$f":"IF(契約用請求書!M48=\"\",\"\",契約用請求書!M48)","v":""},null,{"$f":"IF(契約用請求書!O48=\"\",\"\",契約用請求書!O48)","v":""},null,null,{"$f":"IF(契約用請求書!R48=\"\",\"\",契約用請求書!R48)","v":""},null,null,null,null,null,null,null,{"$f":"IF(契約用請求書!Y48=\"\",\"\",契約用請求書!Y48)","v":""},null,null,null,{"$f":"IF(契約用請求書!AB48=\"\",\"\",契約用請求書!AB48)","v":""},null,null,{"$f":"IF(契約用請求書!AD48=\"\",\"\",契約用請求書!AD48)","v":""},null,null,null,{"$f":"IF(契約用請求書!AG48=\"\",\"\",契約用請求書!AG48)","v":""}]
[null,null,null,null,null,null,null,null,null,null,null,null,null,null,null,null,null,null,null,null,null,null,null,null,null,null,null,null,null,null,null,null,null,null,null,null,null,null,null,null,{"$f":"IF(契約用請求書!$A49=\"\",\"\",契約用請求書!A49)","v":""},null,null,null,null,null,null,null,null,null,null,null,null,null,null,null,{"$f":"IF(契約用請求書!J49=\"\",\"\",契約用請求書!J49)","v":""},null,null,null,null,{"$f":"IF(契約用請求書!M49=\"\",\"\",契約用請求書!M49)","v":""},null,{"$f":"IF(契約用請求書!O49=\"\",\"\",契約用請求書!O49)","v":""},null,null,{"$f":"IF(契約用請求書!R49=\"\",\"\",契約用請求書!R49)","v":""},null,null,null,null,null,null,null,{"$f":"IF(契約用請求書!Y49=\"\",\"\",契約用請求書!Y49)","v":""},null,null,null,{"$f":"IF(契約用請求書!AB49=\"\",\"\",契約用請求書!AB49)","v":""},null,null,{"$f":"IF(契約用請求書!AD49=\"\",\"\",契約用請求書!AD49)","v":""},null,null,null,{"$f":"IF(契約用請求書!AG49=\"\",\"\",契約用請求書!AG49)","v":""},null,null,null,null,null,null,null,null,null,null,null,null,null,null,1990,"　大　分　雑"]
[null,null,null,null,null,null,null,null,null,null,null,null,null,null,null,null,null,null,null,null,null,null,null,null,null,null,null,null,null,null,null,null,null,null,null,null,null,null,null,null,{"$f":"IF(契約用請求書!$A50=\"\",\"\",契約用請求書!A50)","v":""},null,null,null,null,null,null,null,null,null,null,null,null,null,null,null,{"$f":"IF(契約用請求書!J50=\"\",\"\",契約用請求書!J50)","v":""},null,null,null,null,{"$f":"IF(契約用請求書!M50=\"\",\"\",契約用請求書!M50)","v":""},null,{"$f":"IF(契約用請求書!O50=\"\",\"\",契約用請求書!O50)","v":""},null,null,{"$f":"IF(契約用請求書!R50=\"\",\"\",契約用請求書!R50)","v":""},null,null,null,null,null,null,null,{"$f":"IF(契約用請求書!Y50=\"\",\"\",契約用請求書!Y50)","v":""},null,null,null,{"$f":"IF(契約用請求書!AB50=\"\",\"\",契約用請求書!AB50)","v":""},null,null,{"$f":"IF(契約用請求書!AD50=\"\",\"\",契約用請求書!AD50)","v":""},null,null,null,{"$f":"IF(契約用請求書!AG50=\"\",\"\",契約用請求書!AG50)","v":""},null,null,null,null,null,null,null,null,null,null,null,null,null,null,2990,"　R　E　雑"]
[null,null,null,null,null,null,null,null,null,null,null,null,null,null,null,null,null,null,null,null,null,null,null,null,null,null,null,null,null,null,null,null,null,null,null,null,null,null,null,null,{"$f":"IF(契約用請求書!$A51=\"\",\"\",契約用請求書!A51)","v":""},null,null,null,null,null,null,null,null,null,null,null,null,null,null,null,{"$f":"IF(契約用請求書!J51=\"\",\"\",契約用請求書!J51)","v":""},null,null,null,null,{"$f":"IF(契約用請求書!M51=\"\",\"\",契約用請求書!M51)","v":""},null,{"$f":"IF(契約用請求書!O51=\"\",\"\",契約用請求書!O51)","v":""},null,null,{"$f":"IF(契約用請求書!R51=\"\",\"\",契約用請求書!R51)","v":""},null,null,null,null,null,null,null,{"$f":"IF(契約用請求書!Y51=\"\",\"\",契約用請求書!Y51)","v":""},null,null,null,{"$f":"IF(契約用請求書!AB51=\"\",\"\",契約用請求書!AB51)","v":""},null,null,{"$f":"IF(契約用請求書!AD51=\"\",\"\",契約用請求書!AD51)","v":""},null,null,null,{"$f":"IF(契約用請求書!AG51=\"\",\"\",契約用請求書!AG51)","v":""},null,null,null,null,null,null,null,null,null,null,null,null,null,null,3490,"　土　木　雑"]
[null,null,null,null,null,null,null,null,null,null,null,null,null,null,null,null,null,null,null,null,null,null,null,null,null,null,null,null,null,null,null,null,null,null,null,null,null,null,null,null,{"$f":"IF(契約用請求書!$A52=\"\",\"\",契約用請求書!A52)","v":""},null,null,null,null,null,null,null,null,null,null,null,null,null,null,null,{"$f":"IF(契約用請求書!J52=\"\",\"\",契約用請求書!J52)","v":""},null,null,null,null,{"$f":"IF(契約用請求書!M52=\"\",\"\",契約用請求書!M52)","v":""},null,{"$f":"IF(契約用請求書!O52=\"\",\"\",契約用請求書!O52)","v":""},null,null,{"$f":"IF(契約用請求書!R52=\"\",\"\",契約用請求書!R52)","v":""},null,null,null,null,null,null,null,{"$f":"IF(契約用請求書!Y52=\"\",\"\",契約用請求書!Y52)","v":""},null,null,null,{"$f":"IF(契約用請求書!AB52=\"\",\"\",契約用請求書!AB52)","v":""},null,null,{"$f":"IF(契約用請求書!AD52=\"\",\"\",契約用請求書!AD52)","v":""},null,null,null,{"$f":"IF(契約用請求書!AG52=\"\",\"\",契約用請求書!AG52)","v":""},null,null,null,null,null,null,null,null,null,null,null,null,null,null,3890,"　鹿　児　島　雑"]
[null,null,null,null,null,null,null,null,null,null,null,null,null,null,null,null,null,null,null,null,null,null,null,null,null,null,null,null,null,null,null,null,null,null,null,null,null,null,null,null,{"$f":"IF(契約用請求書!$A53=\"\",\"\",契約用請求書!A53)","v":""},null,null,null,null,null,null,null,null,null,null,null,null,null,null,null,{"$f":"IF(契約用請求書!J53=\"\",\"\",契約用請求書!J53)","v":""},null,null,null,null,{"$f":"IF(契約用請求書!M53=\"\",\"\",契約用請求書!M53)","v":""},null,{"$f":"IF(契約用請求書!O53=\"\",\"\",契約用請求書!O53)","v":""},null,null,{"$f":"IF(契約用請求書!R53=\"\",\"\",契約用請求書!R53)","v":""},null,null,null,null,null,null,null,{"$f":"IF(契約用請求書!Y53=\"\",\"\",契約用請求書!Y53)","v":""},null,null,null,{"$f":"IF(契約用請求書!AB53=\"\",\"\",契約用請求書!AB53)","v":""},null,null,{"$f":"IF(契約用請求書!AD53=\"\",\"\",契約用請求書!AD53)","v":""},null,null,null,{"$f":"IF(契約用請求書!AG53=\"\",\"\",契約用請求書!AG53)","v":""},null,null,null,null,null,null,null,null,null,null,null,null,null,null,4490,"　北　九　州　雑"]
[null,null,null,null,null,null,null,null,null,null,null,null,null,null,null,null,null,null,null,null,null,null,null,null,null,null,null,null,null,null,null,null,null,null,null,null,null,null,null,null,{"$f":"IF(契約用請求書!$A54=\"\",\"\",契約用請求書!A54)","v":""},null,null,null,null,null,null,null,null,null,null,null,null,null,null,null,{"$f":"IF(契約用請求書!J54=\"\",\"\",契約用請求書!J54)","v":""},null,null,null,null,{"$f":"IF(契約用請求書!M54=\"\",\"\",契約用請求書!M54)","v":""},null,{"$f":"IF(契約用請求書!O54=\"\",\"\",契約用請求書!O54)","v":""},null,null,{"$f":"IF(契約用請求書!R54=\"\",\"\",契約用請求書!R54)","v":""},null,null,null,null,null,null,null,{"$f":"IF(契約用請求書!Y54=\"\",\"\",契約用請求書!Y54)","v":""},null,null,null,{"$f":"IF(契約用請求書!AB54=\"\",\"\",契約用請求書!AB54)","v":""},null,null,{"$f":"IF(契約用請求書!AD54=\"\",\"\",契約用請求書!AD54)","v":""},null,null,null,{"$f":"IF(契約用請求書!AG54=\"\",\"\",契約用請求書!AG54)","v":""},null,null,null,null,null,null,null,null,null,null,null,null,null,null,4493,"　東　筑　紫　雑"]
[null,null,null,null,null,null,null,null,null,null,null,null,null,null,null,null,null,null,null,null,null,null,null,null,null,null,null,null,null,null,null,null,null,null,null,null,null,null,null,null,null,null,null,null,null,null,null,null,null,null,null,null,null,null,null,null,"本体価格計（税抜）",null,null,null,null,null,null,null,null,null,{"$f":"IF(契約用請求書!R55=\"\",\"\",契約用請求書!R55)","v":""},null,null,null,null,null,null,null,"本体価格計（税抜）",null,null,null,null,null,null,null,null,null,null,{"$f":"IF(契約用請求書!AG55=\"\",\"\",契約用請求書!AG55)","v":""},null,null,null,null,null,null,null,null,null,null,null,null,null,null,4990,"　福　岡　雑"]
[null,null,null,null,null,null,null,null,null,null,null,null,null,null,null,null,null,null,null,null,null,null,null,null,null,null,null,null,null,null,null,null,null,null,null,null,null,null,null,null,null,null,null,null,null,null,null,null,null,null,null,null,null,null,null,null,"消費税等(円未満切捨)",null,null,null,null,null,null,null,null,null,{"$f":"IF(契約用請求書!R56=\"\",\"\",契約用請求書!R56)","v":""},null,null,null,null,null,null,null,"消費税等(円未満切捨)",null,null,null,null,null,null,null,null,null,null,{"$f":"IF(契約用請求書!AG56=\"\",\"\",契約用請求書!AG56)","v":""},null,null,null,null,null,null,null,null,null,null,null,null,null,null,5490,"　熊　本　雑"]
[null,null,null,null,null,null,null,null,null,null,null,null,null,null,null,null,null,null,null,null,null,null,null,null,null,null,null,null,null,null,null,null,null,null,null,null,null,null,null,null,null,null,null,null,null,null,null,null,null,null,null,null,null,null,null,null,"合　　　計　（A）",null,null,null,null,null,null,null,null,null,{"$f":"IF(契約用請求書!R57=\"\",\"\",契約用請求書!R57)","v":""},null,null,null,null,null,null,null,"合　　　計　（B）",null,null,null,null,null,null,null,null,null,null,{"$f":"IF(契約用請求書!AG57=\"\",\"\",契約用請求書!AG57)","v":""},null,null,null,null,null,null,null,null,null,null,null,null,null,null,{"$f":"RIGHT(契約用請求書!G27,4)*1","v":{"$error":"#VALUE!"}},{"$f":"IF(LEFT(契約用請求書!G27,2)*1<19,(LEFT(契約用請求書!G27,2)*1+12),IF(LEFT(契約用請求書!G27,2)*1>27,(LEFT(契約用請求書!G27,2)*1-18),\"　R　\"&(LEFT(契約用請求書!G27,2)*1-18)))","v":{"$error":"#VALUE!"}}]
[]
[null,null,null,null,null,null,null,null,null,null,null,null,null,null,null,null,null,null,null,null,null,null,null,null,null,null,null,null,null,null,null,null,null,null,null,null,null,null,null,null,null,null,null,null,null,null,null,null,null,null,null,null,null,null,null,null,null,null,null,null,null,null,null,null,null,null,null,null,null,null,null,null,null,null,"（  土  木  用  ）"]
[null,null,null,null,null,null,null,null,null,null,null,null,null,null,null,null,null,null,null,null,null,null,null,null,null,null,null,null,null,null,null,null,null,null,null,null,null,null,null,null,null,"支 払 場 所",null,null,null,null,null,null,null,null,"支  払  月",null,null,null,null,null,null,null,null,null,null,null,null,null,null,null,null,null,null,null,null,null,null,null,"項目",null,null,null,null,null,"該当費目に〇印",null,null,null,"内  訳  金  額",null,null,null,null,null,null,null,null,null,null,null,null,null,null,null,{"$f":"IFERROR(CX86&VLOOKUP(CW86,CW78:CX85,2,FALSE),契約用請求書!G33)","v":0}]
[null,null,null,null,null,null,null,null,null,null,null,null,null,null,null,null,null,null,null,null,null,null,null,null,null,null,null,null,null,null,null,null,null,null,null,null,null,null,null,null,null,null,null,null,null,null,null,null,null,null,null,null,null,null,null,null,null,null,null,null,null,null,null,null,null,null,null,null,null,null,null,null,null,null,"コード",null,null,null,null,null,null,null,null,null,null,null,null,null,null,null,null,null,null,null,null,null,null,null,null,null,{"$f":"IF(LEN(AS112)>13,\"左\",\"中\")","v":"中"}]
[]
[null,null,null,null,null,null,null,null,null,null,null,null,null,null,null,null,null,null,null,null,null,null,null,null,null,null,null,null,null,null,null,null,null,null,null,null,null,null,null,null,null,"伝 票 番 号",null,null,null,null,null,null,null,null,null,null,null,null,"-"]
[null,null,null,null,null,null,null,null,null,null,null,null,null,null,null,null,null,null,null,null,null,null,null,null,null,null,null,null,null,null,null,null,null,null,null,null,null,null,null,null,null,null,null,null,null,null,null,null,null,null,null,null,null,null,null,null,null,null,null,null,null,null,null,null,null,null,null,null,null,null,null,null,null,1,null,null,null,null,null,null,"(材・労・外)"]
[null,null,null,null,null,null,null,null,null,null,null,null,null,null,null,null,null,null,null,null,null,null,null,null,null,null,null,null,null,null,null,null,null,null,null,null,null,null,null,null,null,null,null,null,null,null,null,null,null,null,null,null,null,null,null,null,null,null,null,null,null,null,null,null,null,null,null,null,null,null,null,null,null,null,null,null,null,null,null,null,"（1・2・3）"]
[null,null,null,null,null,null,null,null,null,null,null,null,null,null,null,null,null,null,null,null,null,null,null,null,null,null,null,null,null,null,null,null,null,null,null,null,null,null,null,null,null,"取引先コード",null,null,{"$f":"IFERROR(MID(契約用請求書!$G$31,1,1),\"\")","v":""},{"$f":"IFERROR(MID(契約用請求書!$G$31,2,1),\"\")","v":""},null,null,{"$f":"IFERROR(MID(契約用請求書!$G$31,3,1),\"\")","v":""},null,{"$f":"IFERROR(MID(契約用請求書!$G$31,4,1),\"\")","v":""},null,null,null,{"$f":"IFERROR(MID(契約用請求書!$G$31,5,1),\"\")","v":""},null,{"$f":"IFERROR(MID(契約用請求書!$G$31,6,1),\"\")","v":""}]
[null,null,null,null,null,null,null,null,null,null,null,null,null,null,null,null,null,null,null,null,null,null,null,null,null,null,null,null,null,null,null,null,null,null,null,null,null,null,null,null,null,null,null,null,null,null,null,null,null,null,null,null,null,null,null,null,null,null,null,null,null,null,null,null,null,null,null,null,null,null,null,null,null,2,null,null,null,null,null,null,"(材・労・外)"]
[]
[null,null,null,null,null,null,null,null,null,null,null,null,null,null,null,null,null,null,null,null,null,null,null,null,null,null,null,null,null,null,null,null,null,null,null,null,null,null,null,null,null,"請 求 番 号",null,null,{"$f":"IF(CX76=\"\",\"\",IF(CX76*1<10,\"0\",MID(CX76,1,1)))","v":""},{"$f":"IF(CX76=\"\",\"\",IF(CX76<10,MID(CX76,1,1),MID(CX76,2,1)))","v":""},null,null,null,null,null,null,null,null,null,null,null,null,null,null,null,null,null,null,null,null,null,null,null,null,null,null,null,null,null,null,null,null,null,null,"（1・2・3）"]
[null,null,null,null,null,null,null,null,null,null,null,null,null,null,null,null,null,null,null,null,null,null,null,null,null,null,null,null,null,null,null,null,null,null,null,null,null,null,null,null,null,null,null,null,null,null,null,null,null,null,null,null,null,null,null,null,null,null,null,null,null,null,null,null,null,null,null,null,null,null,null,null,null,3,null,null,null,null,null,null,"(材・労・外)"]
[]
[null,null,null,null,null,null,null,null,null,null,null,null,null,null,null,null,null,null,null,null,null,null,null,null,null,null,null,null,null,null,null,null,null,null,null,null,null,null,null,null,null,"査 定 金 額",null,null,null,null,null,null,null,null,null,null,null,null,null,null,null,null,null,null,null,null,null,"税　区　分"]
[null,null,null,null,null,null,null,null,null,null,null,null,null,null,null,null,null,null,null,null,null,null,null,null,null,null,null,null,null,null,null,null,null,null,null,null,null,null,null,null,null,null,null,null,null,null,null,null,null,null,null,null,null,null,null,null,null,null,null,null,null,null,"円",null,null,null,null,null,null,null,null,null,null,null,null,null,null,null,null,null,"（1・2・3）"]
[null,null,null,null,null,null,null,null,null,null,null,null,null,null,null,null,null,null,null,null,null,null,null,null,null,null,null,null,null,null,null,null,null,null,null,null,null,null,null,null,null,null,null,null,null,null,null,null,null,null,null,null,null,null,null,null,null,null,null,null,null,null,null,null,null,null,null,null,null,null,null,null,null,4,null,null,null,null,null,null,"(材・労・外)"]
[null,null,null,null,null,null,null,null,null,null,null,null,null,null,null,null,null,null,null,null,null,null,null,null,null,null,null,null,null,null,null,null,null,null,null,null,null,null,null,null,null,"契 約 番 号",null,null,{"$f":"IFERROR(MID(契約用請求書!$G$29,1,1),\"\")","v":""},{"$f":"IFERROR(MID(契約用請求書!$G$29,2,1),\"\")","v":""},null,null,{"$f":"IFERROR(MID(契約用請求書!$G$29,3,1),\"\")","v":""},null,{"$f":"IFERROR(MID(契約用請求書!$G$29,4,1),\"\")","v":""}]
[null,null,null,null,null,null,null,null,null,null,null,null,null,null,null,null,null,null,null,null,null,null,null,null,null,null,null,null,null,null,null,null,null,null,null,null,null,null,null,null,null,null,null,null,null,null,null,null,null,null,null,null,null,null,null,null,null,null,null,null,null,null,null,null,null,null,null,null,null,null,null,null,null,null,null,null,null,null,null,null,"（1・2・3）"]
[]
[null,null,null,null,null,null,null,null,null,null,null,null,null,null,null,null,null,null,null,null,null,null,null,null,null,null,null,null,null,null,null,null,null,null,null,null,null,null,null,null,null,"科　      目",null,null,"未成工事支出金",null,null,null,null,null,null,null,null,null,"左記以外の場合は、該当費目に〇印",null,null,null,null,null,null,null,null,null,null,4,"建設仮勘定",null,null,null,null,22500,null,5,null,null,null,null,null,null,"(材・労・外)"]
[null,null,null,null,null,null,null,null,null,null,null,null,null,null,null,null,null,null,null,null,null,null,null,null,null,null,null,null,null,null,null,null,null,null,null,null,null,null,null,null,null,null,null,null,null,null,null,null,null,null,null,null,null,null,1,null,"設計業務支出金",null,null,null,null,null,null,13300,null,5,"工事未払金（2）",null,null,null,null,41220,null,null,null,null,null,null,null,null,"（1・2・3）"]
[null,null,null,null,null,null,null,null,null,null,null,null,null,null,null,null,null,null,null,null,null,null,null,null,null,null,null,null,null,null,null,null,null,null,null,null,null,null,null,null,null,"コ   ー   ド",null,null,"1 3 1 0 0",null,null,null,null,null,null,null,null,null,2,null,"耐震診断業務支出金",null,null,null,null,null,null,13400,null,6,"前期損益修正損",null,null,null,null,93100,null,6,null,null,null,null,null,null,"(材・労・外)"]
[null,null,null,null,null,null,null,null,null,null,null,null,null,null,null,null,null,null,null,null,null,null,null,null,null,null,null,null,null,null,null,null,null,null,null,null,null,null,null,null,null,null,null,null,null,null,null,null,null,null,null,null,null,null,3,null,"測量調査業務支出金",null,null,null,null,null,null,13600,null,"その他　(　　　　　　　　　　　　　 )",null,null,null,null,null,null,null,null,null,null,null,null,null,null,"（1・2・3）"]
[null,null,null,null,null,null,null,null,null,null,null,null,null,null,null,null,null,null,null,null,null,null,null,null,null,null,null,null,null,null,null,null,null,null,null,null,null,null,null,null,null,null,null,null,null,null,null,null,null,null,null,null,null,null,null,null,null,null,null,null,null,null,null,null,null,"コード 　(　　　　　　　　　　　　　 )",null,null,null,null,null,null,null,null,"消   費   税   等\n（円未満切捨）"]
[null,null,null,null,null,null,null,null,null,null,null,null,null,null,null,null,null,null,null,null,null,null,null,null,null,null,null,null,null,null,null,null,null,null,null,null,null,null,null,null,null,"工　事　名",null,null,{"$f":"IF(CW89=0,\"\",CW89)","v":""}]
[]
[]
[null,null,null,null,null,null,null,null,null,null,null,null,null,null,null,null,null,null,null,null,null,null,null,null,null,null,null,null,null,null,null,null,null,null,null,null,null,null,null,null,null,"コ　ー　ド",null,null,{"$f":"IFERROR(MID(契約用請求書!$G$27,1,1),\"\")","v":""},null,{"$f":"IFERROR(MID(契約用請求書!$G$27,2,1),\"\")","v":""},null,null,{"$f":"IFERROR(MID(契約用請求書!$G$27,3,1),\"\")","v":""},null,null,{"$f":"IFERROR(MID(契約用請求書!$G$27,4,1),\"\")","v":""},null,null,{"$f":"IFERROR(MID(契約用請求書!$G$27,5,1),\"\")","v":""},null,null,{"$f":"IFERROR(MID(契約用請求書!$G$27,6,1),\"\")","v":""}]
[]
[]
[null,null,null,null,null,null,null,null,null,null,null,null,null,null,null,null,null,null,null,null,null,null,null,null,null,null,null,null,null,null,null,null,null,null,null,null,null,null,null,null,"2021.10.18改訂版",null,null,null,null,null,null,null,null,null,null,null,null,null,null,null,null,null,null,null,null,null,null,null,"経　理",null,null,null,"コーディ\n  ング",null,null,null,null,"検　印",null,null,null,null,null,null,null,null,null,null,null,null,null,null,null,"担　当"]